[Event "Titled Tuesday Blitz April 26 Late 2022"]
[White "Zor, Alber Kadir"]
[Black "Fishbein, Alexander"]
[WhiteFideId "6353169"]
[BlackFideId "2000377"]
[WhiteElo "1966"]
[BlackElo "2442"]
[Result "1-0"]
[Round "04"]
[TimeControl "180+1"]
[Date "2022.04.26"]
[WhiteClock "0:02:05"]
[BlackClock "0:00:04"]

1. e4 {[%clk 0:03:00]}  c5 {[%clk 0:02:58]} 2. Nf3 {[%clk 0:03:01]}  d6 {[%clk 0:02:58]} 3. d4 {[%clk 0:03:02]}  cxd4 {[%clk 0:02:58]} 4. Nxd4 {[%clk 0:03:03]}  Nf6 {[%clk 0:02:58]} 5. Nc3 {[%clk 0:03:03]}  Nc6 {[%clk 0:02:58]} 6. Bg5 {[%clk 0:03:02]}  e6 {[%clk 0:02:58]} 7. Qd3 {[%clk 0:03:03]}  Be7 {[%clk 0:02:56]} 8. O-O-O {[%clk 0:03:02]}  O-O {[%clk 0:02:56]} 9. h4 {[%clk 0:03:01]}  Bd7 {[%clk 0:02:45]} 10. f3 {[%clk 0:02:57]}  Nxd4 {[%clk 0:02:41]} 11. Qxd4 {[%clk 0:02:56]}  Bc6 {[%clk 0:02:42]} 12. g4 {[%clk 0:02:55]}  Qc7 {[%clk 0:02:31]} 13. Bd3 {[%clk 0:02:54]}  Qb6 {[%clk 0:02:21]} 14. Qxb6 {[%clk 0:02:51]}  axb6 {[%clk 0:02:21]} 15. a3 {[%clk 0:02:51]}  Rfc8 {[%clk 0:02:17]} 16. Nb5 {[%clk 0:02:50]}  Bxb5 {[%clk 0:02:06]} 17. Bxb5 {[%clk 0:02:51]}  Rc5 {[%clk 0:01:42]} 18. a4 {[%clk 0:02:48]}  Rac8 {[%clk 0:01:23]} 19. c3 {[%clk 0:02:47]}  R5c7 {[%clk 0:00:46]} 20. Be3 {[%clk 0:02:46]}  Nd7 {[%clk 0:00:45]} 21. Bxd7 {[%clk 0:02:46]}  Rxd7 {[%clk 0:00:46]} 22. Bxb6 {[%clk 0:02:46]}  Ra8 {[%clk 0:00:45]} 23. a5 {[%clk 0:02:46]}  Bd8 {[%clk 0:00:43]} 24. Bxd8 {[%clk 0:02:32]}  Rdxd8 {[%clk 0:00:43]} 25. b4 {[%clk 0:02:33]}  b6 {[%clk 0:00:41]} 26. axb6 {[%clk 0:02:33]}  Ra2 {[%clk 0:00:36]} 27. b7 {[%clk 0:02:27]}  Ra6 {[%clk 0:00:26]} 28. Kb2 {[%clk 0:02:22]}  Rb6 {[%clk 0:00:26]} 29. Rd4 {[%clk 0:02:16]}  Rxb7 {[%clk 0:00:24]} 30. Rhd1 {[%clk 0:02:16]}  Rb6 {[%clk 0:00:20]} 31. Kb3 {[%clk 0:02:14]}  Kf8 {[%clk 0:00:20]} 32. c4 {[%clk 0:02:13]}  Rdb8 {[%clk 0:00:17]} 33. b5 {[%clk 0:02:12]}  Ke7 {[%clk 0:00:16]} 34. Kb4 {[%clk 0:02:11]}  Ra8 {[%clk 0:00:15]} 35. e5 {[%clk 0:02:10]}  dxe5 {[%clk 0:00:13]} 36. Rd7+ {[%clk 0:02:10]}  Kf6 {[%clk 0:00:13]} 37. c5 {[%clk 0:02:09]}  Rbb8 {[%clk 0:00:13]} 38. b6 {[%clk 0:02:08]}  Ra2 {[%clk 0:00:13]} 39. R1d3 {[%clk 0:02:07]}  Rb2+ {[%clk 0:00:13]} 40. Rb3 {[%clk 0:02:08]}  Rc2 {[%clk 0:00:11]} 41. Kb5 {[%clk 0:02:07]}  Rc8 {[%clk 0:00:09]} 42. Rc7 {[%clk 0:02:06]}  Rb8 {[%clk 0:00:08]} 43. b7 {[%clk 0:02:05]}  e4 {[%clk 0:00:08]} 44. fxe4 {[%clk 0:02:04]}  Ke5 {[%clk 0:00:07]} 45. Kb6 {[%clk 0:02:04]}  Kxe4 {[%clk 0:00:06]} 46. Rc8 {[%clk 0:02:05]}  Rxb7+ {[%clk 0:00:04]} 47. Kxb7 {[%clk 0:02:05]} 1-0


[Site "https://www.chess.com"]

[Event "Titled Tuesday Blitz April 26 Late 2022"]
[White "Zumsande, Martin"]
[Black "Oro, Luis"]
[WhiteFideId "4651324"]
[BlackFideId "104094"]
[WhiteElo "2368"]
[BlackElo "2395"]
[Result "1-0"]
[Round "04"]
[TimeControl "180+1"]
[Date "2022.04.26"]
[WhiteClock "0:01:06"]
[BlackClock "0:00:07"]

1. e4 {[%clk 0:03:00]}  c5 {[%clk 0:02:58]} 2. c3 {[%clk 0:03:00]}  Nf6 {[%clk 0:02:54]} 3. e5 {[%clk 0:03:00]}  Nd5 {[%clk 0:02:54]} 4. d4 {[%clk 0:03:00]}  cxd4 {[%clk 0:02:55]} 5. cxd4 {[%clk 0:03:01]}  d6 {[%clk 0:02:55]} 6. Bc4 {[%clk 0:03:00]}  Nb6 {[%clk 0:02:52]} 7. Bb5+ {[%clk 0:03:00]}  Bd7 {[%clk 0:02:41]} 8. e6 {[%clk 0:03:00]}  fxe6 {[%clk 0:02:18]} 9. Bd3 {[%clk 0:03:00]}  g6 {[%clk 0:02:13]} 10. h4 {[%clk 0:03:00]}  Bc6 {[%clk 0:01:51]} 11. h5 {[%clk 0:02:54]}  Bg7 {[%clk 0:01:26]} 12. Nf3 {[%clk 0:02:49]}  gxh5 {[%clk 0:01:20]} 13. Ng5 {[%clk 0:02:44]}  Kd7 {[%clk 0:01:01]} 14. Qxh5 {[%clk 0:02:36]}  Qf8 {[%clk 0:00:53]} 15. Be3 {[%clk 0:02:13]}  Nd5 {[%clk 0:00:49]} 16. Qg4 {[%clk 0:01:59]}  Qf6 {[%clk 0:00:37]} 17. Nxe6 {[%clk 0:01:57]}  Nxe3 {[%clk 0:00:30]} 18. fxe3 {[%clk 0:01:48]}  Bh6 {[%clk 0:00:28]} 19. Rf1 {[%clk 0:01:25]}  Qxe6 {[%clk 0:00:13]} 20. Bf5 {[%clk 0:01:25]}  Bd5 {[%clk 0:00:14]} 21. Nc3 {[%clk 0:01:17]}  Bc4 {[%clk 0:00:08]} 22. d5 {[%clk 0:01:12]}  Qxf5 {[%clk 0:00:07]} 23. Rxf5 {[%clk 0:01:06]} 1-0


[Site "https://www.chess.com"]

[Event "Titled Tuesday Blitz April 26 Late 2022"]
[White "Alekseenko, Kirill"]
[Black "Wieczorek, Oskar"]
[WhiteFideId "4135539"]
[BlackFideId "1133950"]
[WhiteElo "2682"]
[BlackElo "2319"]
[Result "1-0"]
[Round "05"]
[TimeControl "180+1"]
[Date "2022.04.26"]
[WhiteClock "0:00:27"]
[BlackClock "0:00:01"]

1. e4 {[%clk 0:03:00]}  e6 {[%clk 0:02:59]} 2. d4 {[%clk 0:03:00]}  d5 {[%clk 0:03:00]} 3. e5 {[%clk 0:03:01]}  c5 {[%clk 0:03:00]} 4. c3 {[%clk 0:03:02]}  Nc6 {[%clk 0:03:00]} 5. Nf3 {[%clk 0:03:02]}  Bd7 {[%clk 0:03:00]} 6. Be2 {[%clk 0:03:02]}  f6 {[%clk 0:03:00]} 7. O-O {[%clk 0:03:01]}  fxe5 {[%clk 0:03:00]} 8. Nxe5 {[%clk 0:03:01]}  Nxe5 {[%clk 0:03:00]} 9. dxe5 {[%clk 0:03:02]}  Qc7 {[%clk 0:03:00]} 10. Bf4 {[%clk 0:03:01]}  O-O-O {[%clk 0:03:00]} 11. Nd2 {[%clk 0:02:53]}  Nh6 {[%clk 0:03:00]} 12. c4 {[%clk 0:02:51]}  d4 {[%clk 0:02:55]} 13. Bf3 {[%clk 0:02:40]}  Bc6 {[%clk 0:02:51]} 14. Bxc6 {[%clk 0:02:37]}  Qxc6 {[%clk 0:02:52]} 15. Bxh6 {[%clk 0:02:29]}  gxh6 {[%clk 0:02:51]} 16. Qf3 {[%clk 0:02:27]}  Qxf3 {[%clk 0:02:36]} 17. Nxf3 {[%clk 0:02:28]}  h5 {[%clk 0:02:24]} 18. Nd2 {[%clk 0:02:25]}  d3 {[%clk 0:02:17]} 19. h4 {[%clk 0:02:19]}  Bh6 {[%clk 0:01:42]} 20. f4 {[%clk 0:02:17]}  Rhg8 {[%clk 0:01:39]} 21. Kh2 {[%clk 0:02:17]}  Rd4 {[%clk 0:01:21]} 22. g3 {[%clk 0:02:17]}  Rgd8 {[%clk 0:01:18]} 23. a4 {[%clk 0:02:06]}  Bf8 {[%clk 0:01:15]} 24. Kg2 {[%clk 0:02:04]}  Be7 {[%clk 0:01:14]} 25. b3 {[%clk 0:01:57]}  R8d7 {[%clk 0:01:12]} 26. Rad1 {[%clk 0:01:56]}  Bd8 {[%clk 0:01:10]} 27. Kf3 {[%clk 0:01:42]}  Ba5 {[%clk 0:00:58]} 28. Ke3 {[%clk 0:01:42]}  Bxd2+ {[%clk 0:00:50]} 29. Rxd2 {[%clk 0:01:42]}  Kc7 {[%clk 0:00:42]} 30. f5 {[%clk 0:01:31]}  exf5 {[%clk 0:00:38]} 31. Rxf5 {[%clk 0:01:32]}  Rg4 {[%clk 0:00:38]} 32. Rg5 {[%clk 0:01:15]}  Rg7 {[%clk 0:00:27]} 33. Rxg7+ {[%clk 0:01:11]}  Rxg7 {[%clk 0:00:28]} 34. Kf4 {[%clk 0:01:11]}  Rg4+ {[%clk 0:00:27]} 35. Kf3 {[%clk 0:01:02]}  Rd4 {[%clk 0:00:27]} 36. Ke3 {[%clk 0:01:03]}  Rg4 {[%clk 0:00:27]} 37. Rxd3 {[%clk 0:01:02]}  Rxg3+ {[%clk 0:00:27]} 38. Ke4 {[%clk 0:01:02]}  Rg4+ {[%clk 0:00:15]} 39. Kf5 {[%clk 0:01:02]}  Rxh4 {[%clk 0:00:16]} 40. e6 {[%clk 0:01:03]}  Rd4 {[%clk 0:00:12]} 41. Rg3 {[%clk 0:00:58]}  Rd1 {[%clk 0:00:05]} 42. Rg7+ {[%clk 0:00:56]}  Kc6 {[%clk 0:00:05]} 43. Rxh7 {[%clk 0:00:52]}  Rf1+ {[%clk 0:00:05]} 44. Ke5 {[%clk 0:00:53]}  Re1+ {[%clk 0:00:05]} 45. Kf6 {[%clk 0:00:53]}  Rf1+ {[%clk 0:00:06]} 46. Ke7 {[%clk 0:00:53]}  Rf5 {[%clk 0:00:06]} 47. Ke8 {[%clk 0:00:48]}  b6 {[%clk 0:00:04]} 48. e7 {[%clk 0:00:28]}  Kc7 {[%clk 0:00:04]} 49. Rf7 {[%clk 0:00:29]}  Rg5 {[%clk 0:00:01]} 50. Kf8 {[%clk 0:00:27]} 1-0


[Site "https://www.chess.com"]

[Event "Titled Tuesday Blitz April 26 Late 2022"]
[White "Arnold, Ken"]
[Black "Mangialardo, Tiago Carvalho"]
[WhiteFideId "2056836"]
[BlackFideId "2130718"]
[WhiteElo "2286"]
[BlackElo "2074"]
[Result "1-0"]
[Round "05"]
[TimeControl "180+1"]
[Date "2022.04.26"]
[WhiteClock "0:00:14"]
[BlackClock "0:00:01"]

1. d4 {[%clk 0:03:00]}  Nf6 {[%clk 0:01:08]} 2. c4 {[%clk 0:02:59]}  g6 {[%clk 0:01:07]} 3. Nf3 {[%clk 0:02:59]}  c5 {[%clk 0:01:08]} 4. Nc3 {[%clk 0:02:59]}  Bg7 {[%clk 0:01:08]} 5. e4 {[%clk 0:02:55]}  cxd4 {[%clk 0:01:02]} 6. Nxd4 {[%clk 0:02:56]}  d6 {[%clk 0:01:02]} 7. Be2 {[%clk 0:02:55]}  O-O {[%clk 0:01:03]} 8. O-O {[%clk 0:02:54]}  Nc6 {[%clk 0:01:04]} 9. Be3 {[%clk 0:02:53]}  Bd7 {[%clk 0:00:51]} 10. Rc1 {[%clk 0:02:32]}  Rc8 {[%clk 0:00:50]} 11. Qd2 {[%clk 0:02:28]}  Re8 {[%clk 0:00:49]} 12. b3 {[%clk 0:02:26]}  a6 {[%clk 0:00:48]} 13. f3 {[%clk 0:02:26]}  Qa5 {[%clk 0:00:44]} 14. Rfd1 {[%clk 0:02:20]}  Ne5 {[%clk 0:00:25]} 15. Nd5 {[%clk 0:02:13]}  Qxd2 {[%clk 0:00:23]} 16. Rxd2 {[%clk 0:01:59]}  Nxd5 {[%clk 0:00:17]} 17. exd5 {[%clk 0:02:00]}  h6 {[%clk 0:00:03]} 18. h3 {[%clk 0:01:52]}  g5 {[%clk 0:00:02]} 19. Rdc2 {[%clk 0:01:42]}  Rc7 {[%clk 0:00:01]} 20. a4 {[%clk 0:01:29]}  Rec8 {[%clk 0:00:02]} 21. a5 {[%clk 0:01:27]}  Ng6 {[%clk 0:00:02]} 22. Kf2 {[%clk 0:01:15]}  Nf4 {[%clk 0:00:02]} 23. h4 {[%clk 0:00:47]}  Rc5 {[%clk 0:00:02]} 24. hxg5 {[%clk 0:00:41]}  hxg5 {[%clk 0:00:02]} 25. b4 {[%clk 0:00:36]}  R5c7 {[%clk 0:00:02]} 26. c5 {[%clk 0:00:29]}  Bb5 {[%clk 0:00:01]} 27. Bxb5 {[%clk 0:00:20]}  axb5 {[%clk 0:00:01]} 28. Bxf4 {[%clk 0:00:18]}  gxf4 {[%clk 0:00:01]} 29. Nf5 {[%clk 0:00:16]}  dxc5 {[%clk 0:00:01]} 30. Nxg7 {[%clk 0:00:14]} 1-0


[Site "https://www.chess.com"]

[Event "Titled Tuesday Blitz April 26 Late 2022"]
[White "Aroesti, Roee"]
[Black "Batsiashvili, Nino"]
[WhiteFideId "2817144"]
[BlackFideId "13602993"]
[WhiteElo "2068"]
[BlackElo "2192"]
[Result "1-0"]
[Round "05"]
[TimeControl "180+1"]
[Date "2022.04.26"]
[WhiteClock "0:00:30"]
[BlackClock "0:00:25"]

1. e4 {[%clk 0:03:00]}  c6 {[%clk 0:02:57]} 2. Nf3 {[%clk 0:02:57]}  d5 {[%clk 0:02:58]} 3. Nc3 {[%clk 0:02:57]}  dxe4 {[%clk 0:02:57]} 4. Nxe4 {[%clk 0:02:58]}  Nf6 {[%clk 0:02:57]} 5. Qe2 {[%clk 0:02:58]}  Nxe4 {[%clk 0:02:52]} 6. Qxe4 {[%clk 0:02:59]}  Be6 {[%clk 0:02:52]} 7. b3 {[%clk 0:02:56]}  Nd7 {[%clk 0:02:43]} 8. Bb2 {[%clk 0:02:54]}  a5 {[%clk 0:02:33]} 9. O-O-O {[%clk 0:02:38]}  a4 {[%clk 0:02:32]} 10. Kb1 {[%clk 0:02:36]}  Bd5 {[%clk 0:02:31]} 11. Qe3 {[%clk 0:02:28]}  axb3 {[%clk 0:02:31]} 12. axb3 {[%clk 0:02:27]}  Qa5 {[%clk 0:02:31]} 13. c4 {[%clk 0:02:16]}  Bxf3 {[%clk 0:02:27]} 14. gxf3 {[%clk 0:02:11]}  e6 {[%clk 0:02:22]} 15. Rg1 {[%clk 0:02:05]}  Qa2+ {[%clk 0:02:19]} 16. Kc1 {[%clk 0:01:59]}  Ba3 {[%clk 0:02:20]} 17. Qc3 {[%clk 0:01:54]}  Nc5 {[%clk 0:02:19]} 18. Kc2 {[%clk 0:01:34]}  Na6 {[%clk 0:02:06]} 19. Ra1 {[%clk 0:01:17]}  Nb4+ {[%clk 0:02:04]} 20. Kd1 {[%clk 0:01:17]}  O-O-O {[%clk 0:00:51]} 21. Rxa2 {[%clk 0:01:06]}  Nxa2 {[%clk 0:00:52]} 22. Qxg7 {[%clk 0:00:55]}  Bxb2 {[%clk 0:00:44]} 23. Qxb2 {[%clk 0:00:55]}  Nb4 {[%clk 0:00:45]} 24. Be2 {[%clk 0:00:46]}  Rhg8 {[%clk 0:00:38]} 25. Rxg8 {[%clk 0:00:44]}  Rxg8 {[%clk 0:00:39]} 26. d4 {[%clk 0:00:44]}  Rg2 {[%clk 0:00:28]} 27. Qa3 {[%clk 0:00:39]}  Na6 {[%clk 0:00:27]} 28. Qf8+ {[%clk 0:00:38]}  Kc7 {[%clk 0:00:26]} 29. Qxf7+ {[%clk 0:00:39]}  Kb8 {[%clk 0:00:27]} 30. Qxe6 {[%clk 0:00:36]}  Rxf2 {[%clk 0:00:25]} 31. Qg8+ {[%clk 0:00:31]}  Ka7 {[%clk 0:00:25]} 32. Qg1 {[%clk 0:00:30]} 1-0


[Site "https://www.chess.com"]

[Event "Titled Tuesday Blitz April 26 Late 2022"]
[White "Aung Thant Zin"]
[Black "Kanyamarala, Tarun"]
[WhiteFideId "13000063"]
[BlackFideId "45004714"]
[WhiteElo "2278"]
[BlackElo "2177"]
[Result "0-1"]
[Round "05"]
[TimeControl "180+1"]
[Date "2022.04.26"]
[WhiteClock "0:00:21"]
[BlackClock "0:00:43"]

1. e4 {[%clk 0:03:00]}  c6 {[%clk 0:02:52]} 2. d4 {[%clk 0:02:58]}  d6 {[%clk 0:02:50]} 3. Nc3 {[%clk 0:02:59]}  Nf6 {[%clk 0:02:49]} 4. f4 {[%clk 0:02:59]}  g6 {[%clk 0:02:40]} 5. Nf3 {[%clk 0:02:55]}  Bg7 {[%clk 0:02:40]} 6. Bd3 {[%clk 0:02:53]}  O-O {[%clk 0:02:40]} 7. O-O {[%clk 0:02:53]}  Bg4 {[%clk 0:02:39]} 8. Kh1 {[%clk 0:02:52]}  Nbd7 {[%clk 0:02:34]} 9. h3 {[%clk 0:02:47]}  Bxf3 {[%clk 0:02:32]} 10. Qxf3 {[%clk 0:02:48]}  e5 {[%clk 0:02:28]} 11. dxe5 {[%clk 0:02:43]}  dxe5 {[%clk 0:02:28]} 12. f5 {[%clk 0:02:43]}  Nc5 {[%clk 0:02:09]} 13. Be3 {[%clk 0:02:36]}  Nxd3 {[%clk 0:01:52]} 14. Rad1 {[%clk 0:02:29]}  Qa5 {[%clk 0:01:35]} 15. Rxd3 {[%clk 0:02:24]}  Rad8 {[%clk 0:01:35]} 16. Rxd8 {[%clk 0:02:08]}  Rxd8 {[%clk 0:01:34]} 17. Bg5 {[%clk 0:02:08]}  Rd6 {[%clk 0:01:31]} 18. Rd1 {[%clk 0:01:54]}  Qd8 {[%clk 0:01:21]} 19. fxg6 {[%clk 0:01:40]}  hxg6 {[%clk 0:01:13]} 20. Rd3 {[%clk 0:01:36]}  Rxd3 {[%clk 0:01:10]} 21. cxd3 {[%clk 0:01:35]}  Qd6 {[%clk 0:01:05]} 22. Be3 {[%clk 0:01:23]}  Qxd3 {[%clk 0:01:01]} 23. Bxa7 {[%clk 0:01:21]}  Qc2 {[%clk 0:00:57]} 24. b3 {[%clk 0:01:12]}  Nh5 {[%clk 0:00:54]} 25. Bg1 {[%clk 0:00:33]}  Bh6 {[%clk 0:00:47]} 26. b4 {[%clk 0:00:23]}  Bf4 {[%clk 0:00:44]} 27. Ne2 {[%clk 0:00:21]}  Qxe2 {[%clk 0:00:43]} 0-1


[Site "https://www.chess.com"]

[Event "Titled Tuesday Blitz April 26 Late 2022"]
[White "Babazada, Khazar"]
[Black "Karttunen, Mika"]
[WhiteFideId "13413554"]
[BlackFideId "502081"]
[WhiteElo "2406"]
[BlackElo "2343"]
[Result "1-0"]
[Round "05"]
[TimeControl "180+1"]
[Date "2022.04.26"]
[WhiteClock "0:00:03"]
[BlackClock "0:00:01"]

1. e4 {[%clk 0:03:00]}  e5 {[%clk 0:02:59]} 2. Nf3 {[%clk 0:03:01]}  Nc6 {[%clk 0:02:59]} 3. Bb5 {[%clk 0:02:59]}  a6 {[%clk 0:02:59]} 4. Ba4 {[%clk 0:03:00]}  Nf6 {[%clk 0:02:58]} 5. O-O {[%clk 0:03:00]}  Be7 {[%clk 0:02:58]} 6. d3 {[%clk 0:02:58]}  d6 {[%clk 0:02:56]} 7. Nc3 {[%clk 0:02:53]}  O-O {[%clk 0:02:55]} 8. h3 {[%clk 0:02:50]}  h6 {[%clk 0:02:53]} 9. a3 {[%clk 0:02:49]}  Be6 {[%clk 0:02:53]} 10. Bxc6 {[%clk 0:02:29]}  bxc6 {[%clk 0:02:53]} 11. Bd2 {[%clk 0:02:27]}  c5 {[%clk 0:02:51]} 12. b4 {[%clk 0:02:24]}  Nd7 {[%clk 0:02:35]} 13. bxc5 {[%clk 0:01:54]}  Nxc5 {[%clk 0:02:23]} 14. Be3 {[%clk 0:01:53]}  Nd7 {[%clk 0:02:14]} 15. Nd2 {[%clk 0:01:42]}  f5 {[%clk 0:02:14]} 16. exf5 {[%clk 0:01:41]}  Rxf5 {[%clk 0:02:09]} 17. Rb1 {[%clk 0:01:39]}  d5 {[%clk 0:02:03]} 18. d4 {[%clk 0:01:05]}  Bxa3 {[%clk 0:01:49]} 19. dxe5 {[%clk 0:00:56]}  Nxe5 {[%clk 0:01:45]} 20. Nb3 {[%clk 0:00:56]}  Nc4 {[%clk 0:00:53]} 21. Bc5 {[%clk 0:00:51]}  Bxc5 {[%clk 0:00:41]} 22. Nxc5 {[%clk 0:00:52]}  Bf7 {[%clk 0:00:41]} 23. Ne2 {[%clk 0:00:34]}  Qd6 {[%clk 0:00:26]} 24. Nd4 {[%clk 0:00:32]}  Rg5 {[%clk 0:00:24]} 25. Nd3 {[%clk 0:00:32]}  c5 {[%clk 0:00:20]} 26. Nf3 {[%clk 0:00:32]}  Rg6 {[%clk 0:00:20]} 27. Re1 {[%clk 0:00:31]}  Rf8 {[%clk 0:00:19]} 28. Rb7 {[%clk 0:00:29]}  Rf6 {[%clk 0:00:19]} 29. Qa1 {[%clk 0:00:28]}  d4 {[%clk 0:00:18]} 30. Ree7 {[%clk 0:00:21]}  Rxf3 {[%clk 0:00:12]} 31. gxf3 {[%clk 0:00:20]}  Nd2 {[%clk 0:00:11]} 32. Ne5 {[%clk 0:00:14]}  Qxe5 {[%clk 0:00:06]} 33. Rxe5 {[%clk 0:00:12]}  Nxf3+ {[%clk 0:00:06]} 34. Kf1 {[%clk 0:00:11]}  Nxe5 {[%clk 0:00:07]} 35. Re7 {[%clk 0:00:06]}  Bc4+ {[%clk 0:00:07]} 36. Ke1 {[%clk 0:00:06]}  Nf3+ {[%clk 0:00:07]} 37. Kd1 {[%clk 0:00:06]}  Ng5 {[%clk 0:00:06]} 38. f4 {[%clk 0:00:04]}  Rxf4 {[%clk 0:00:06]} 39. Qa5 {[%clk 0:00:04]}  Rf1+ {[%clk 0:00:05]} 40. Re1 {[%clk 0:00:04]}  Rf5 {[%clk 0:00:01]} 41. Qd8+ {[%clk 0:00:04]}  Kh7 {[%clk 0:00:02]} 42. h4 {[%clk 0:00:04]}  Nf3 {[%clk 0:00:02]} 43. Re8 {[%clk 0:00:04]}  Ne5 {[%clk 0:00:01]} 44. Kc1 {[%clk 0:00:03]}  Rf1+ {[%clk 0:00:01]} 45. Kb2 {[%clk 0:00:03]}  h5 {[%clk 0:00:01]} 46. Rxe5 {[%clk 0:00:03]} 1-0


[Site "https://www.chess.com"]

[Event "Titled Tuesday Blitz April 26 Late 2022"]
[White "Bellissimo, Joseph F."]
[Black "Miszler, Levente"]
[WhiteFideId "2609843"]
[BlackFideId "763276"]
[WhiteElo "2061"]
[BlackElo "1966"]
[Result "0-1"]
[Round "05"]
[TimeControl "180+1"]
[Date "2022.04.26"]
[WhiteClock "0:00:52"]
[BlackClock "0:00:17"]

1. e4 {[%clk 0:03:00]}  e6 {[%clk 0:03:00]} 2. d4 {[%clk 0:03:00]}  d5 {[%clk 0:03:01]} 3. Nd2 {[%clk 0:03:00]}  f5 {[%clk 0:03:00]} 4. exf5 {[%clk 0:02:55]}  exf5 {[%clk 0:03:01]} 5. Ngf3 {[%clk 0:02:55]}  Nf6 {[%clk 0:03:01]} 6. Bd3 {[%clk 0:02:56]}  Bd6 {[%clk 0:03:00]} 7. O-O {[%clk 0:02:56]}  O-O {[%clk 0:03:00]} 8. c4 {[%clk 0:02:56]}  c6 {[%clk 0:03:00]} 9. cxd5 {[%clk 0:02:56]}  cxd5 {[%clk 0:03:00]} 10. Ne5 {[%clk 0:02:53]}  Ne4 {[%clk 0:03:00]} 11. Qb3 {[%clk 0:02:51]}  Bxe5 {[%clk 0:02:52]} 12. dxe5 {[%clk 0:02:49]}  Kh8 {[%clk 0:02:51]} 13. f3 {[%clk 0:02:36]}  Nc5 {[%clk 0:02:51]} 14. Qc2 {[%clk 0:02:35]}  Nxd3 {[%clk 0:02:48]} 15. Qxd3 {[%clk 0:02:36]}  f4 {[%clk 0:02:43]} 16. b3 {[%clk 0:02:31]}  Nc6 {[%clk 0:02:40]} 17. Bb2 {[%clk 0:02:30]}  Bf5 {[%clk 0:02:35]} 18. Qe2 {[%clk 0:02:29]}  Re8 {[%clk 0:02:30]} 19. Rfe1 {[%clk 0:02:27]}  d4 {[%clk 0:02:27]} 20. Nc4 {[%clk 0:02:25]}  d3 {[%clk 0:02:25]} 21. Qd2 {[%clk 0:02:24]}  Bg6 {[%clk 0:02:01]} 22. Nd6 {[%clk 0:02:18]}  Re6 {[%clk 0:01:58]} 23. Qxf4 {[%clk 0:02:16]}  Qb6+ {[%clk 0:01:49]} 24. Kh1 {[%clk 0:02:15]}  Qb4 {[%clk 0:01:26]} 25. Qe3 {[%clk 0:01:44]}  Rd8 {[%clk 0:01:20]} 26. Qg5 {[%clk 0:01:39]}  Rdxd6 {[%clk 0:01:14]} 27. a3 {[%clk 0:01:32]}  Qa5 {[%clk 0:01:00]} 28. b4 {[%clk 0:01:30]}  Qb5 {[%clk 0:01:00]} 29. exd6 {[%clk 0:01:27]}  Qxg5 {[%clk 0:01:00]} 30. Rxe6 {[%clk 0:01:27]}  Qd5 {[%clk 0:00:53]} 31. Rae1 {[%clk 0:01:24]}  d2 {[%clk 0:00:43]} 32. d7 {[%clk 0:01:03]}  dxe1=Q+ {[%clk 0:00:35]} 33. Rxe1 {[%clk 0:01:02]}  Qxd7 {[%clk 0:00:35]} 34. h3 {[%clk 0:01:03]}  h6 {[%clk 0:00:32]} 35. Re2 {[%clk 0:01:00]}  Qd1+ {[%clk 0:00:32]} 36. Kh2 {[%clk 0:01:00]}  Qxe2 {[%clk 0:00:32]} 37. Bc3 {[%clk 0:01:01]}  Ne7 {[%clk 0:00:29]} 38. Bd4 {[%clk 0:00:59]}  Nd5 {[%clk 0:00:29]} 39. Kg3 {[%clk 0:00:56]}  Ne3 {[%clk 0:00:28]} 40. Kf4 {[%clk 0:00:56]}  Nxg2+ {[%clk 0:00:28]} 41. Kg3 {[%clk 0:00:56]}  Ne1 {[%clk 0:00:25]} 42. Kf4 {[%clk 0:00:55]}  Qxf3+ {[%clk 0:00:25]} 43. Ke5 {[%clk 0:00:55]}  Qe4+ {[%clk 0:00:25]} 44. Kd6 {[%clk 0:00:53]}  Qxd4+ {[%clk 0:00:25]} 45. Kc7 {[%clk 0:00:54]}  Be4 {[%clk 0:00:20]} 46. h4 {[%clk 0:00:53]}  Qb6+ {[%clk 0:00:19]} 47. Kd7 {[%clk 0:00:52]}  Qc6+ {[%clk 0:00:20]} 48. Kd8 {[%clk 0:00:52]}  Bf5 {[%clk 0:00:20]} 49. Ke7 {[%clk 0:00:53]}  Qe6+ {[%clk 0:00:19]} 50. Kf8 {[%clk 0:00:53]}  Bg6 {[%clk 0:00:18]} 51. h5 {[%clk 0:00:53]}  Bxh5 {[%clk 0:00:17]} 52. b5 {[%clk 0:00:52]}  Bg6 {[%clk 0:00:17]} 53. b6 {[%clk 0:00:52]}  a5 {[%clk 0:00:16]} 54. a4 {[%clk 0:00:52]}  Qe8# {[%clk 0:00:17]} 0-1


[Site "https://www.chess.com"]

[Event "Titled Tuesday Blitz April 26 Late 2022"]
[White "Bortnyk, Olexandr"]
[Black "Leiva, Gianmarco"]
[WhiteFideId "14120828"]
[BlackFideId "3804399"]
[WhiteElo "2723"]
[BlackElo "2323"]
[Result "1-0"]
[Round "05"]
[TimeControl "180+1"]
[Date "2022.04.26"]
[WhiteClock "0:00:15"]
[BlackClock "0:00:02"]

1. d4 {[%clk 0:02:59]}  Nf6 {[%clk 0:02:58]} 2. Nc3 {[%clk 0:02:59]}  d5 {[%clk 0:02:58]} 3. Bf4 {[%clk 0:03:00]}  c5 {[%clk 0:02:58]} 4. e4 {[%clk 0:03:00]}  Nxe4 {[%clk 0:02:30]} 5. Nxe4 {[%clk 0:02:59]}  dxe4 {[%clk 0:02:30]} 6. dxc5 {[%clk 0:02:59]}  Qa5+ {[%clk 0:02:08]} 7. Qd2 {[%clk 0:03:00]}  Qxd2+ {[%clk 0:01:48]} 8. Bxd2 {[%clk 0:02:49]}  e5 {[%clk 0:01:43]} 9. Be3 {[%clk 0:02:47]}  Bd7 {[%clk 0:01:35]} 10. f3 {[%clk 0:02:44]}  exf3 {[%clk 0:01:33]} 11. Nxf3 {[%clk 0:02:44]}  f6 {[%clk 0:01:34]} 12. O-O-O {[%clk 0:02:42]}  Bc6 {[%clk 0:01:34]} 13. b4 {[%clk 0:02:38]}  Nd7 {[%clk 0:01:34]} 14. Nd2 {[%clk 0:02:36]}  a6 {[%clk 0:01:19]} 15. Nc4 {[%clk 0:02:20]}  O-O-O {[%clk 0:01:02]} 16. h4 {[%clk 0:01:31]}  Be7 {[%clk 0:00:54]} 17. Nd6+ {[%clk 0:01:28]}  Bxd6 {[%clk 0:00:54]} 18. cxd6 {[%clk 0:01:28]}  b5 {[%clk 0:00:54]} 19. c4 {[%clk 0:01:24]}  bxc4 {[%clk 0:00:49]} 20. Bxc4 {[%clk 0:01:24]}  Kb7 {[%clk 0:00:49]} 21. Kb2 {[%clk 0:01:24]}  Nb6 {[%clk 0:00:43]} 22. Bb3 {[%clk 0:01:22]}  Bb5 {[%clk 0:00:25]} 23. Bc5 {[%clk 0:01:14]}  Ba4 {[%clk 0:00:13]} 24. Bxb6 {[%clk 0:01:05]}  Bxb3 {[%clk 0:00:13]} 25. Bxd8 {[%clk 0:01:06]}  Bxd1 {[%clk 0:00:13]} 26. Bxf6 {[%clk 0:01:07]}  gxf6 {[%clk 0:00:13]} 27. Rxd1 {[%clk 0:01:08]}  Kc8 {[%clk 0:00:12]} 28. d7+ {[%clk 0:01:05]}  Kd8 {[%clk 0:00:13]} 29. Rd6 {[%clk 0:00:58]}  Ke7 {[%clk 0:00:13]} 30. Rxa6 {[%clk 0:00:31]}  Rg8 {[%clk 0:00:13]} 31. d8=Q+ {[%clk 0:00:29]}  Rxd8 {[%clk 0:00:10]} 32. Ra7+ {[%clk 0:00:29]}  Ke6 {[%clk 0:00:08]} 33. b5 {[%clk 0:00:23]}  Rd2+ {[%clk 0:00:05]} 34. Kc3 {[%clk 0:00:23]}  Rxg2 {[%clk 0:00:04]} 35. b6 {[%clk 0:00:23]}  Rg1 {[%clk 0:00:01]} 36. a4 {[%clk 0:00:18]}  Rb1 {[%clk 0:00:01]} 37. a5 {[%clk 0:00:17]}  f5 {[%clk 0:00:01]} 38. b7 {[%clk 0:00:15]}  f4 {[%clk 0:00:02]} 39. a6 {[%clk 0:00:14]}  f3 {[%clk 0:00:02]} 40. Ra8 {[%clk 0:00:15]}  f2 {[%clk 0:00:02]} 41. Rf8 {[%clk 0:00:15]} 1-0


[Site "https://www.chess.com"]